bitfinex/quotes_BTCUSD_20251110
["timestamp","ask_amount","ask_price","bid_price","bid_amount"]
[1762749956574,0.00046835,105980.0,105970.0,0.70415314]
[1762749956871,0.1891832,105980.0,105970.0,0.70415314]
[1762749957225,0.1891832,105980.0,105970.0,0.70111314]
[1762749959061,0.1891832,105980.0,105970.0,0.70415314]
[1762749960090,0.1891832,105980.0,105970.0,0.70111314]
[1762749960975,0.00046835,105980.0,105970.0,0.70111314]
[1762749961175,0.1891832,105980.0,105970.0,0.70111314]
[1762749961374,0.00046835,105980.0,105970.0,0.70111314]
[1762749961577,0.00046835,105980.0,105970.0,0.84028603]
[1762749961778,0.00046835,105980.0,105970.0,0.77177772]
[1762749961982,0.00046835,105980.0,105970.0,0.70415314]
[1762749962297,0.00046835,105980.0,105970.0,0.95832338]
[1762749962502,0.00046835,105980.0,105970.0,0.70415314]
[1762749962903,0.00046835,105980.0,105970.0,1.02594796]
[1762749963080,0.00046835,105980.0,105970.0,1.12404969]
[1762749965302,0.00046835,105980.0,105970.0,1.02594796]
[1762749967918,0.00046835,105980.0,105970.0,1.78845868]
[1762749968851,0.00046835,105980.0,105970.0,1.81678463]
[1762749968999,0.00046835,105980.0,105970.0,0.96886841]
[1762749971128,0.00046835,105980.0,105970.0,0.6303158]
[1762749971333,0.00046835,105980.0,105970.0,0.72841753]
[1762749972085,0.1891832,105980.0,105970.0,0.72841753]
[1762749972287,0.2403832,105980.0,105970.0,0.09695053]
[1762749972494,0.2403832,105980.0,105970.0,0.25735724]
[1762749972692,0.2169132,105980.0,105970.0,0.59590985]
[1762749972913,0.2005232,105980.0,105970.0,0.59894985]
[1762749973123,0.57893581,105980.0,105970.0,0.001]
[1762749973328,0.91748842,105980.0,105970.0,0.001]
[1762749973499,0.64940759,105980.0,105970.0,0.001]
[1762749974203,0.65140759,105980.0,105970.0,0.001]
[1762749974795,0.18875047,105960.0,105950.0,0.32061221]
[1762749975000,0.24161047,105960.0,105950.0,0.32061221]
[1762749975429,0.24161047,105960.0,105950.0,0.65916482]
[1762749975703,0.24161047,105960.0,105950.0,0.47039654]
[1762749975856,0.24161047,105960.0,105950.0,0.65916482]
[1762749976541,0.26000047,105960.0,105950.0,0.47039654]
[1762749976715,0.28447047,105960.0,105950.0,0.47039654]
[1762749977511,0.28447047,105960.0,105950.0,0.46735654]
[1762749978920,0.28447047,105960.0,105950.0,0.65612482]
[1762749979139,0.28447047,105960.0,105950.0,0.46735654]
[1762749979771,0.28447047,105960.0,105950.0,0.65612482]
[1762749980182,0.28447047,105960.0,105950.0,0.46735654]
[1762749983664,0.28447047,105960.0,105950.0,0.12880393]
[1762749984633,0.28447047,105960.0,105950.0,0.06762458]
[1762749984794,0.18876828,105950.0,105940.0,0.07066458]
[1762749985002,0.18876828,105950.0,105940.0,0.06762458]
[1762749985003,0.26349653,105950.0,105940.0,0.06762458]
[1762749985197,0.23995828,105950.0,105940.0,0.06762458]
[1762749985586,0.2404302,105950.0,105940.0,0.26633055]
[1762749985961,0.24000645,105950.0,105940.0,0.06762458]
[1762749986161,0.24000645,105950.0,105940.0,0.25641068]
[1762749986388,0.24000645,105950.0,105940.0,0.25741068]
[1762749986739,0.24000645,105950.0,105940.0,0.001]
[1762749986940,0.24047837,105950.0,105940.0,0.001]
[1762749987320,0.24047837,105950.0,105940.0,0.1897861]
[1762749987507,0.24000645,105950.0,105940.0,0.06862458]
[1762749987712,0.1887861,105940.0,105930.0,0.65920005]
[1762749987916,0.2303061,105940.0,105930.0,0.65920005]
[1762749988545,0.2575161,105940.0,105930.0,0.65920005]
[1762749988796,0.2814961,105940.0,105930.0,0.40921719]
[1762749988995,0.2814961,105940.0,105930.0,0.13284393]
[1762749989158,0.2814961,105940.0,105930.0,0.47139654]
[1762749989588,0.2814961,105940.0,105930.0,0.66020046]
[1762749990013,0.2575161,105940.0,105930.0,0.71854487]
[1762749990575,0.2575161,105940.0,105930.0,0.66020046]
[1762749990958,0.2423261,105940.0,105930.0,0.66324046]
[1762749991264,0.05354,105940.0,105930.0,0.66324046]
[1762749991466,0.20083756,105950.0,105940.0,0.1887861]
[1762749991676,0.26633756,105950.0,105940.0,0.27528929]
[1762749991884,0.28152756,105950.0,105940.0,0.59496329]
[1762749992570,0.28452756,105950.0,105940.0,0.40617719]
[1762749992772,0.28452756,105950.0,105940.0,0.52733871]
[1762749992993,0.28452756,105950.0,105940.0,0.59496329]
[1762749993533,0.35452756,105950.0,105940.0,0.59496329]
[1762749997619,0.35452756,105950.0,105940.0,0.40617719]
[1762749998011,0.35452756,105950.0,105940.0,0.06762458]
[1762749998610,0.1887861,105940.0,105930.0,0.65920004]
[1762749998794,0.2399761,105940.0,105930.0,0.47039654]
[1762749999165,0.2399761,105940.0,105930.0,0.65616046]
[1762749999314,0.2399761,105940.0,105930.0,0.46735654]
[1762750000523,0.2399761,105940.0,105930.0,0.12880393]
[1762750000729,0.2399761,105940.0,105930.0,0.12980393]
[1762750001444,0.2399761,105940.0,105930.0,0.06217935]
[1762750001835,0.2399761,105940.0,105930.0,0.001]
[1762750002057,0.2399761,105940.0,105930.0,0.06887002]
[1762750004825,0.90152871,105940.0,105930.0,0.06887002]
[1762750005067,0.90200067,105940.0,105930.0,0.001]
[1762750005490,0.18880392,105930.0,105920.0,0.06787002]
[1762750005706,0.30505217,105930.0,105920.0,0.06787002]
[1762750005910,0.28198592,105930.0,105920.0,0.06787002]
[1762750006039,0.18882175,105920.0,105910.0,0.66298505]
[1762750006244,0.24001175,105920.0,105910.0,0.66298505]
[1762750006442,0.24001175,105920.0,105910.0,0.32443244]
[1762750006871,0.24001175,105920.0,105910.0,0.57877135]
[1762750007675,0.05119,105920.0,105910.0,0.57877135]
[1762750007876,0.24001175,105920.0,105910.0,0.57877135]
[1762750008081,0.24001175,105920.0,105910.0,0.57977135]
[1762750010615,0.05119,105920.0,105910.0,0.57977135]
[1762750010834,0.02721,105920.0,105910.0,0.67787308]
[1762750011040,0.26588592,105930.0,105920.0,0.18882175]
[1762750011286,0.26541392,105930.0,105920.0,0.52737436]
[1762750011593,0.23905392,105930.0,105920.0,0.52737436]
[1762750011777,0.28057392,105930.0,105920.0,0.52737436]
[1762750011980,0.23905392,105930.0,105920.0,0.52737436]
[1762750012187,0.28257392,105930.0,105920.0,0.52737436]
[1762750012972,0.18882175,105920.0,105910.0,0.38993196]
[1762750013183,0.23994175,105920.0,105910.0,0.38993196]
[1762750014422,0.23994175,105920.0,105910.0,0.39093196]
[1762750015032,0.23994175,105920.0,105910.0,0.57977154]
[1762750015447,0.23994175,105920.0,105910.0,0.39093196]
[1762750015644,0.23994175,105920.0,105910.0,0.57977154]
[1762750019968,0.23994175,105920.0,105910.0,0.39093196]
[1762750021160,0.23994175,105920.0,105910.0,0.001]
[1762750022014,0.24041336,105920.0,105910.0,0.001]
[1762750022233,0.24241336,105920.0,105910.0,0.001]
[1762750023203,0.18883958,105910.0,105900.0,0.53044292]
[1762750023588,0.05331,105910.0,105900.0,0.53044292]
[1762750023822,0.24214958,105910.0,105900.0,0.53044292]
[1762750023965,0.05331,105910.0,105900.0,0.53044292]
[1762750024188,0.28147958,105910.0,105900.0,0.53044292]
[1762750024388,0.28152772,105910.0,105900.0,0.53044292]
[1762750024809,0.28352772,105910.0,105900.0,0.53044292]
[1762750025026,0.28452772,105910.0,105900.0,0.53044292]
[1762750025542,0.09568814,105910.0,105900.0,0.53044292]
[1762750026502,0.00304814,105910.0,105900.0,0.95436539]
[1762750026710,0.00304814,105910.0,105900.0,0.95132539]
[1762750026933,0.01483814,105910.0,105900.0,0.95132539]
[1762750027287,0.01483814,105910.0,105900.0,0.87203553]
[1762750028210,0.01483814,105910.0,105900.0,0.53044292]
[1762750028211,0.24300772,105910.0,105900.0,0.53044292]
[1762750028589,0.24300772,105910.0,105900.0,0.18885741]
[1762750028792,0.24300772,105910.0,105890.0,0.60100829]
[1762750029078,0.20367772,105910.0,105900.0,0.44322993]
[1762750029373,0.21918772,105910.0,105900.0,0.44322993]
[1762750029589,0.24300772,105910.0,105900.0,0.25437252]
[1762750029767,0.24200772,105910.0,105900.0,0.69760245]
[1762750030085,0.05416814,105910.0,105900.0,0.69760245]
[1762750030321,0.05416814,105910.0,105900.0,0.78975081]
[1762750030495,0.05316814,105910.0,105900.0,0.69760245]
[1762750030844,0.05416814,105910.0,105900.0,0.69760245]
[1762750031249,0.24300772,105910.0,105900.0,0.69760245]
[1762750031451,0.00304814,105910.0,105900.0,0.95501497]
[1762750031639,0.00304814,105910.0,105900.0,1.0531167]
[1762750032264,0.00304814,105910.0,105900.0,0.95501497]
[1762750032908,0.00304814,105910.0,105900.0,0.95805497]
[1762750033107,0.04456814,105910.0,105900.0,0.95805497]
[1762750034387,0.04456814,105910.0,105900.0,0.95501497]
[1762750036919,0.04456814,105910.0,105900.0,0.95805497]
[1762750037147,0.04456814,105910.0,105900.0,0.19189741]
[1762750037359,0.04456814,105910.0,105900.0,0.97390071]
[1762750037539,0.04456814,105910.0,105900.0,0.95805497]
[1762750037949,0.00304814,105910.0,105900.0,1.72117253]
[1762750047649,0.00304814,105910.0,105900.0,2.04417253]
[1762750048004,0.00304814,105910.0,105900.0,2.14227426]
[1762750049321,0.00204814,105910.0,105900.0,2.14227426]
[1762750050177,4.814e-05,105910.0,105900.0,2.14227426]
[1762750050802,0.00104814,105910.0,105900.0,2.14227426]
[1762750051751,4.814e-05,105910.0,105900.0,2.14227426]
[1762750052329,4.814e-05,105910.0,105900.0,2.29017426]
[1762750055864,4.814e-05,105910.0,105900.0,2.31851626]
[1762750056511,4.814e-05,105910.0,105900.0,2.35469854]
[1762750057863,4.814e-05,105910.0,105900.0,2.43891224]
[1762750059839,4.814e-05,105910.0,105900.0,2.43791224]
[1762750060012,4.814e-05,105910.0,105900.0,2.35369854]
[1762750060212,4.814e-05,105910.0,105900.0,2.47454848]
[1762750060619,4.814e-05,105910.0,105900.0,2.47154848]
[1762750060942,4.814e-05,105910.0,105900.0,2.47954848]
[1762750062591,4.814e-05,105910.0,105900.0,2.36169854]
[1762750063021,0.55647986,105960.0,105940.0,0.69751364]
[1762750063220,0.55647986,105960.0,105950.0,0.25437252]
[1762750063221,0.23352807,105960.0,105950.0,0.25437252]
[1762750063405,0.2330562,105960.0,105950.0,0.25741252]
[1762750063604,0.2487162,105960.0,105950.0,0.25741252]
[1762750063773,0.2487162,105960.0,105950.0,0.50736015]
[1762750064101,0.2487162,105960.0,105950.0,0.76173267]
[1762750064243,0.2537162,105960.0,105950.0,0.8598344]
[1762750064450,0.2577162,105960.0,105950.0,0.50836015]
[1762750064781,0.2527162,105960.0,105950.0,0.76273267]
[1762750064983,0.2527162,105960.0,105950.0,0.50836015]
[1762750065234,0.24327868,105960.0,105950.0,0.50836015]
[1762750065413,0.05452821,105960.0,105950.0,0.50836015]
[1762750065616,0.05452821,105960.0,105950.0,0.8601461]
[1762750065993,0.03649821,105960.0,105950.0,0.8601461]
[1762750066412,0.03649821,105960.0,105950.0,0.76273267]
[1762750067683,0.00904821,105960.0,105950.0,0.76577267]
[1762750068096,0.00904821,105960.0,105950.0,0.76881267]
[1762750068821,0.00904821,105960.0,105950.0,0.76577267]
[1762750069061,0.00404821,105960.0,105950.0,0.76577267]
[1762750069470,0.00704821,105960.0,105950.0,0.76577267]
[1762750069870,0.00304821,105960.0,105950.0,0.76477267]
[1762750070034,0.00604821,105960.0,105950.0,0.76477267]
[1762750071005,0.19479868,105960.0,105950.0,0.76477267]
[1762750071217,0.20705868,105960.0,105950.0,0.76477267]
[1762750071789,0.01830821,105960.0,105950.0,0.76477267]
[1762750072134,0.20705868,105960.0,105950.0,0.8628744]
[1762750072356,0.24637868,105960.0,105950.0,0.76173267]
[1762750072558,0.24637868,105960.0,105950.0,0.57296439]
[1762750073969,0.24637868,105960.0,105950.0,0.76173267]
[1762750074592,0.24637868,105960.0,105950.0,0.57296439]
[1762750075020,0.24637868,105960.0,105940.0,0.5706491]
[1762750075021,0.18876828,105950.0,105940.0,0.03137534]
[1762750075267,0.23965828,105950.0,105940.0,0.70057114]
[1762750075481,0.05089,105950.0,105940.0,0.70057114]
[1762750075683,0.23965828,105950.0,105940.0,0.70057114]
[1762750075887,0.21534828,105950.0,105940.0,0.70057114]
[1762750076100,0.21534828,105950.0,105940.0,0.51178504]
[1762750076309,0.21634828,105950.0,105940.0,0.51178504]
[1762750076677,0.21634828,105950.0,105940.0,0.70057114]
[1762750076890,0.21834828,105950.0,105940.0,0.70057114]
[1762750077066,0.21834828,105950.0,105940.0,0.51178504]
[1762750077784,0.21834828,105950.0,105940.0,0.70057114]
[1762750078389,0.21834828,105950.0,105940.0,0.51178504]
[1762750078390,0.24265828,105950.0,105940.0,0.51178504]
[1762750078989,0.24265828,105950.0,105930.0,0.5451418]
[1762750078990,0.1887861,105940.0,105930.0,0.5451418]
[1762750079187,0.2396761,105940.0,105930.0,0.77117818]
[1762750079595,0.2396761,105940.0,105930.0,0.57296439]
[1762750079766,0.2396761,105940.0,105930.0,0.76176831]
[1762750080419,0.2406761,105940.0,105930.0,0.76176831]
[1762750081070,0.2406761,105940.0,105930.0,0.25537252]
[1762750081477,0.2406761,105940.0,105930.0,0.75972831]
[1762750081679,0.001,105940.0,105930.0,1.11524256]
[1762750081854,0.001,105940.0,105930.0,1.02018083]
[1762750082403,0.001,105940.0,105930.0,1.01714083]
[1762750084069,0.001,105940.0,105930.0,1.02018083]
[1762750089984,0.001,105940.0,105930.0,0.82833691]
[1762750089985,0.1897861,105940.0,105930.0,0.82833691]
[1762750090560,0.1897861,105940.0,105930.0,1.01714083]
[1762750090996,0.001,105940.0,105930.0,0.59289214]
[1762750091130,0.001,105940.0,105930.0,0.59593214]
[1762750091552,0.001,105940.0,105930.0,1.03290274]
[1762750092343,0.001,105940.0,105930.0,1.06123891]
[1762750093641,0.03424005,106010.0,105970.0,0.20119148]
[1762750093784,0.05414379,106030.0,106020.0,0.19864364]
[1762750093966,0.0552098,106030.0,106020.0,0.56782591]
[1762750094169,0.01804909,106030.0,106020.0,1.4169486]
[1762750094394,0.01804909,106030.0,106020.0,1.33236789]
[1762750094602,0.0004,106030.0,106020.0,1.34236788]
[1762750094802,0.0004,106030.0,106020.0,1.33545788]
[1762750094989,0.0004,106030.0,106020.0,1.69973733]
[1762750095196,0.0004,106030.0,106020.0,1.67432675]
[1762750095444,0.0004,106030.0,106020.0,0.65772014]
[1762750095707,0.0004,106030.0,106020.0,1.67432675]
[1762750095880,0.0004,106030.0,106020.0,1.7425599]
[1762750096289,0.0004,106030.0,106020.0,1.67479835]
[1762750096436,0.0004,106030.0,106020.0,1.67579835]
[1762750096640,0.0004,106030.0,106020.0,1.67532675]
[1762750097278,0.0004,106030.0,106020.0,1.72587656]
[1762750097819,0.0004,106030.0,106020.0,1.72634816]
[1762750098184,0.0004,106030.0,106020.0,1.72587656]
[1762750098380,0.0004,106030.0,106020.0,1.72634709]
[1762750098586,0.0004,106030.0,106020.0,1.72587656]
[1762750099434,0.00180431,106030.0,106020.0,1.72587656]
[1762750099768,0.00180431,106030.0,106020.0,1.72634816]
[1762750100431,0.00180431,106030.0,106020.0,1.75994165]
[1762750101091,0.00180431,106030.0,106020.0,1.75947005]
[1762750101292,0.00180431,106030.0,106020.0,1.70939184]
[1762750101709,0.00180431,106030.0,106020.0,1.70892024]
[1762750101911,0.00180431,106030.0,106020.0,1.70939184]
[1762750102224,0.00180431,106030.0,106020.0,1.70892024]
[1762750103263,0.00180431,106030.0,106020.0,1.70939184]
[1762750103686,0.00180431,106030.0,106020.0,1.72634816]
[1762750104026,0.02995431,106030.0,106020.0,1.42054348]
[1762750104225,0.05490431,106030.0,106020.0,0.67432402]
[1762750104508,0.07844256,106030.0,106020.0,0.44718476]
[1762750104635,0.26706842,106030.0,106020.0,0.6458284]
[1762750104836,0.24353017,106030.0,106020.0,0.61229261]
[1762750105076,0.24353017,106030.0,106020.0,0.42364896]
[1762750105287,0.24353017,106030.0,106020.0,0.42673895]
[1762750105696,0.24353017,106030.0,106020.0,0.6153826]
[1762750106507,0.05490431,106030.0,106020.0,0.6153826]
[1762750108037,0.01557824,106030.0,106020.0,0.65799997]
[1762750108379,0.02815,106030.0,106020.0,0.74326353]
[1762750110101,0.24172586,106030.0,106020.0,0.74326353]
[1762750110632,0.0531,106030.0,106020.0,0.74326353]
[1762750111249,0.0531,106030.0,106020.0,0.67550198]
[1762750111837,0.24172586,106030.0,106020.0,0.67550198]
[1762750112237,0.24172586,106030.0,106020.0,0.40159477]
[1762750112588,0.24172586,106030.0,106020.0,0.59023842]
[1762750113357,0.0531,106030.0,106020.0,0.67504319]
[1762750113521,0.07663825,106030.0,106020.0,0.59023842]
[1762750114272,0.24259807,106040.0,106020.0,0.59023842]
[1762750114480,0.01652,106030.0,106020.0,0.69563423]
[1762750114654,0.01652,106030.0,106020.0,0.76276695]
[1762750115015,0.24307993,106040.0,106030.0,0.18862586]
[1762750115216,0.24307993,106040.0,106030.0,0.08746118]
[1762750115415,0.2198739,106040.0,106030.0,0.33936182]
[1762750115619,0.2617139,106040.0,106030.0,0.67823069]
[1762750115814,0.2597139,106040.0,106030.0,0.67823069]
[1762750116028,0.2431939,106040.0,106030.0,0.75900358]
[1762750116225,0.2451939,106040.0,106030.0,0.73587358]
[1762750116444,0.01474583,106040.0,106030.0,0.73587358]
[1762750116648,0.05658583,106040.0,106030.0,0.75900358]
[1762750117350,0.05858583,106040.0,106030.0,0.75900358]
[1762750117549,0.05858583,106040.0,106030.0,0.67896589]
[1762750118143,0.23494293,106050.0,106040.0,0.00308999]
[1762750118344,0.27683109,106050.0,106040.0,0.02341845]
[1762750118560,0.29053109,106050.0,106040.0,0.26247534]
[1762750118760,0.29053109,106050.0,106040.0,0.07386727]
[1762750119092,0.35171044,106050.0,106040.0,0.1147807]
[1762750119256,0.35471044,106050.0,106040.0,0.1314646]
[1762750119470,0.35471044,106050.0,106040.0,0.06433188]
[1762750119887,0.35471044,106050.0,106040.0,0.02341845]
[1762750120320,0.35671044,106050.0,106040.0,0.09055117]
[1762750120653,0.33176044,106050.0,106040.0,0.27915924]
[1762750121210,0.33176044,106050.0,106040.0,0.09055117]
[1762750121795,0.34546044,106050.0,106040.0,0.09055117]
[1762750122318,0.34546044,106050.0,106040.0,0.10822322]
[1762750123269,0.17890291,106050.0,106040.0,0.09153424]
[1762750123445,0.1965046,106050.0,106040.0,0.17633901]
[1762750123684,0.1965046,106050.0,106040.0,0.15927126]
[1762750123887,0.19673853,106050.0,106040.0,0.15927126]
[1762750124085,0.20616804,106050.0,106040.0,0.15927126]
[1762750124292,0.20616804,106050.0,106040.0,0.09153424]
[1762750124414,0.14498869,106050.0,106040.0,0.28014231]
[1762750124627,0.14498869,106050.0,106040.0,0.09153424]
[1762750124832,0.20829804,106050.0,106040.0,0.02341845]
[1762750125234,0.21711021,106050.0,106040.0,0.02341845]
[1762750125603,0.21711021,106050.0,106040.0,0.09124495]
[1762750125875,0.21711021,106050.0,106040.0,0.08815496]
[1762750126070,0.21711021,106050.0,106040.0,0.09124495]
[1762750127655,0.55597908,106050.0,106040.0,0.09124495]
[1762750127880,0.21711021,106050.0,106040.0,0.09124495]
[1762750128209,0.14067646,106050.0,106040.0,0.09124495]
[1762750128565,0.32929528,106050.0,106040.0,0.09124495]
[1762750130099,0.65231754,106050.0,106040.0,0.08815496]
[1762750130474,0.65231882,106050.0,106040.0,0.08815496]
[1762750138075,0.65231882,106050.0,106040.0,0.05940156]
[1762750140562,0.65231882,106050.0,106040.0,0.03394375]
[1762750141432,0.64350665,106050.0,106040.0,0.03394375]
[1762750141631,0.64350665,106050.0,106040.0,0.05940183]
[1762750141860,0.64350665,106050.0,106040.0,0.03394375]
[1762750148371,0.64350665,106050.0,106040.0,0.08485938]
[1762750148669,0.64350665,106050.0,106040.0,0.03394375]
[1762750149166,0.64350665,106050.0,106040.0,0.08485938]
[1762750149992,0.64350665,106050.0,106040.0,0.46010354]
[1762750150128,0.64350665,106050.0,106040.0,0.12123467]
[1762750150506,0.64350665,106050.0,106040.0,0.08485938]
[1762750150986,0.64350665,106050.0,106040.0,0.33858299]
[1762750151184,0.64350665,106050.0,106040.0,0.08485938]
[1762750151346,0.64350665,106050.0,106040.0,0.5923066]
[1762750151925,0.64350665,106050.0,106040.0,0.08485938]
[1762750152160,0.64350665,106050.0,106040.0,0.33858299]
[1762750152763,0.64137665,106050.0,106040.0,0.33858299]
[1762750152961,0.02290732,106050.0,106040.0,1.14528765]
[1762750153321,0.06462732,106050.0,106040.0,1.14528765]
[1762750153480,0.23559237,106050.0,106040.0,1.14528765]
[1762750154065,0.23559237,106050.0,106040.0,0.70295597]
[1762750154296,0.23259237,106050.0,106040.0,0.89156404]
[1762750154499,0.23059237,106050.0,106040.0,0.89156404]
[1762750154703,0.23159237,106050.0,106040.0,1.14528765]
[1762750154947,0.00228209,106050.0,106040.0,1.90645848]
[1762750155242,0.00228209,106050.0,106040.0,1.85554285]
[1762750155773,0.00228209,106050.0,106040.0,1.92384085]
[1762750155991,0.00128209,106050.0,106040.0,1.92336935]
[1762750156203,0.00128209,106050.0,106040.0,1.85554285]
[1762750156378,0.00128209,106050.0,106040.0,1.94134762]
[1762750156609,0.00028209,106050.0,106040.0,1.85701419]
[1762750156823,0.00028209,106050.0,106040.0,2.29900935]
[1762750157047,8.52e-06,106050.0,106040.0,2.36870814]
[1762750157265,8.52e-06,106050.0,106040.0,2.33404641]
[1762750157662,8.52e-06,106050.0,106040.0,2.33304641]
[1762750157805,8.52e-06,106050.0,106040.0,2.33504641]
[1762750158009,8.52e-06,106050.0,106040.0,2.33404641]
[1762750158218,8.52e-06,106050.0,106040.0,2.34604641]
[1762750158419,0.00100852,106050.0,106040.0,2.34504641]
[1762750158620,0.00200852,106050.0,106040.0,2.36204641]
[1762750159822,0.00200852,106050.0,106040.0,2.24419647]
[1762750160431,0.00200852,106050.0,106040.0,2.32867894]
[1762750163343,0.00200852,106050.0,106040.0,2.29249666]
[1762750164779,0.00200852,106050.0,106040.0,2.29249684]
[1762750172124,0.00200852,106050.0,106040.0,1.59882193]
[1762750172413,0.00200852,106050.0,106040.0,2.2724203]
[1762750172786,0.00200852,106050.0,106040.0,2.27551029]
[1762750173188,0.00100852,106050.0,106040.0,2.25851029]
[1762750173607,8.52e-06,106050.0,106040.0,2.24651029]
[1762750173804,8.52e-06,106050.0,106040.0,2.25051029]
[1762750174011,8.52e-06,106050.0,106040.0,2.25451029]
[1762750177434,8.52e-06,106050.0,106040.0,2.18701437]
[1762750177853,8.52e-06,106050.0,106040.0,2.25148999]
[1762750178770,8.52e-06,106050.0,106040.0,2.25457998]
[1762750179487,8.52e-06,106050.0,106040.0,2.18701437]
[1762750180598,8.52e-06,106050.0,106040.0,2.27149684]
[1762750185555,0.0004,106060.0,106050.0,0.19168027]
[1762750185789,0.0004,106060.0,106050.0,1.26785941]
[1762750185995,0.0004,106060.0,106050.0,2.01017122]
[1762750186369,0.01805712,106060.0,106050.0,1.24900039]
[1762750187140,0.01805712,106060.0,106050.0,1.25200039]
[1762750187780,0.01805712,106060.0,106050.0,1.25500039]
[1762750189231,0.0004,106060.0,106050.0,1.25500039]
[1762750190156,0.0004,106060.0,106050.0,1.25500087]
[1762750190355,0.0004,106060.0,106050.0,1.2545294]
[1762750190558,0.0004,106060.0,106050.0,1.2550004]
[1762750190849,0.0004,106060.0,106050.0,2.01617123]
[1762750191046,0.00063389,106060.0,106050.0,2.01570023]
[1762750191409,0.00063389,106060.0,106050.0,1.2550004]
[1762750193215,0.00063389,106060.0,106050.0,1.2545294]
[1762750194576,0.00063389,106060.0,106050.0,1.15642767]
[1762750196131,0.00063389,106060.0,106050.0,1.92759849]
[1762750196409,0.00063389,106060.0,106050.0,1.16642766]
[1762750198842,0.00063389,106060.0,106050.0,1.92759849]
[1762750200331,0.00063389,106060.0,106050.0,1.16642766]
[1762750200542,0.00063389,106060.0,106050.0,2.02570022]
[1762750200745,0.00063389,106060.0,106050.0,1.26452939]
[1762750200941,0.00063389,106060.0,106050.0,2.02570022]
[1762750201949,0.00063389,106060.0,106050.0,1.940923]
[1762750203689,0.00063389,106060.0,106050.0,2.263923]
[1762750206174,1.934e-05,106060.0,106050.0,2.263923]
[1762750206379,1.934e-05,106060.0,106050.0,2.38177294]
[1762750206585,1.934e-05,106060.0,106050.0,2.38224439]
[1762750207169,1.934e-05,106060.0,106050.0,2.26439445]
[1762750207763,1.934e-05,106060.0,106050.0,2.41129445]
[1762750210434,1.934e-05,106060.0,106050.0,2.49611069]
[1762750210939,1.934e-05,106060.0,106050.0,1.73446841]
[1762750211145,1.934e-05,106060.0,106050.0,1.38264307]
[1762750212750,1.934e-05,106060.0,106050.0,1.63636668]
[1762750212971,1.934e-05,106060.0,106050.0,1.21330978]
[1762750213622,1.934e-05,106060.0,106050.0,1.06640978]
[1762750214242,1.934e-05,106060.0,106050.0,0.72829585]
[1762750214467,1.934e-05,106060.0,106050.0,1.06640978]
[1762750214926,1.934e-05,106060.0,106050.0,1.16451151]
[1762750216150,1.934e-05,106060.0,106050.0,1.50262544]
[1762750216920,0.0004,106080.0,106070.0,1.20087256]
[1762750217122,0.0004,106080.0,106070.0,1.38396421]
[1762750217325,0.0004,106090.0,106080.0,1.20085479]
[1762750217500,0.00054446,106090.0,106080.0,1.68227486]
[1762750217703,0.00054446,106090.0,106080.0,1.34463149]
[1762750218017,0.00054446,106090.0,106080.0,1.61445966]
[1762750218198,0.0004,106100.0,106090.0,0.20160916]
[1762750218595,0.0004,106100.0,106090.0,1.18320411]
[1762750219505,0.0004,106100.0,106090.0,1.26620411]
[1762750219709,0.0004,106100.0,106090.0,1.28816621]
[1762750219909,0.0004,106100.0,106090.0,1.26820411]
[1762750221355,0.0004,106100.0,106090.0,1.66446242]
[1762750221607,0.0004,106100.0,106090.0,1.68306952]
[1762750221825,0.0004,106120.0,106090.0,1.68306952]
[1762750221826,0.0004,106120.0,106100.0,1.60756052]
[1762750222028,0.0004,106140.0,106130.0,0.2015381]
[1762750222252,0.01806979,106140.0,106130.0,0.99090531]
[1762750222460,0.0004,106150.0,106140.0,0.18843037]
[1762750222671,0.0004,106150.0,106140.0,1.46965474]
[1762750222878,0.0004,106150.0,106140.0,1.45081171]
[1762750223076,0.0004,106150.0,106140.0,1.41836665]
[1762750223203,0.0004,106150.0,106140.0,1.40140981]
[1762750224047,0.0004,106150.0,106140.0,1.40082981]
[1762750224246,0.0004,106150.0,106140.0,1.43452408]
[1762750224863,0.0014,106150.0,106140.0,1.43452408]
[1762750225817,0.0014,106150.0,106140.0,1.40082981]
[1762750225955,0.0014,106150.0,106140.0,1.43327487]
[1762750226159,0.0014,106150.0,106140.0,1.46690309]
[1762750227354,0.0014,106150.0,106140.0,1.41630322]
[1762750227768,0.0014,106150.0,106140.0,1.77185987]
[1762750227928,0.0004,106160.0,106150.0,0.23768488]
[1762750228129,0.0004,106160.0,106150.0,0.80631081]
[1762750228299,0.0004,106160.0,106150.0,1.74569273]
[1762750228707,0.0004,106160.0,106150.0,1.81324944]
[1762750229116,0.0004,106160.0,106150.0,1.74569273]
[1762750229544,0.0004,106160.0,106150.0,1.74769273]
[1762750229774,0.0004,106170.0,106160.0,0.22766714]
[1762750229980,0.0004,106170.0,106160.0,1.79132265]
[1762750230198,0.0004,106170.0,106160.0,1.80878437]
[1762750231279,0.0004,106170.0,106160.0,1.85112377]
[1762750231532,1e-08,106170.0,106160.0,1.85112377]
[1762750231710,1e-08,106170.0,106160.0,1.93212377]
[1762750231906,1e-08,106170.0,106160.0,1.93312377]
[1762750232224,1e-08,106170.0,106160.0,1.9146549]
[1762750232423,1e-08,106170.0,106160.0,1.9176549]
[1762750232858,1e-08,106170.0,106160.0,1.86756706]
[1762750233032,1e-08,106170.0,106160.0,1.38008523]
[1762750233214,1e-08,106170.0,106160.0,1.46062163]
[1762750233617,1e-08,106170.0,106160.0,1.75222483]
[1762750234050,1e-08,106170.0,106160.0,2.21152808]
[1762750234246,1e-08,106170.0,106160.0,2.39027801]
[1762750234470,1e-08,106170.0,106160.0,2.38727801]
[1762750234652,1e-08,106170.0,106160.0,2.40427801]
[1762750235188,1e-08,106170.0,106160.0,2.41874775]
[1762750235388,1e-08,106170.0,106160.0,2.41874762]
[1762750235750,1e-08,106170.0,106160.0,2.40474762]
[1762750236016,1e-08,106170.0,106160.0,2.42874762]
[1762750236170,1e-08,106170.0,106160.0,2.45377317]
[1762750236577,8e-05,106220.0,106210.0,0.75328167]
[1762750236923,0.00022444,106220.0,106210.0,0.86071481]
[1762750237124,0.00022444,106220.0,106210.0,0.88548481]
[1762750238249,0.00522444,106220.0,106210.0,0.88548481]
[1762750238754,0.00822444,106220.0,106210.0,0.88548481]
[1762750239133,0.00985849,106220.0,106210.0,0.88548481]
[1762750239334,0.00985849,106220.0,106210.0,1.20848481]
[1762750241595,0.00985849,106220.0,106210.0,0.25304616]
[1762750241802,0.00985849,106220.0,106210.0,0.80493167]
[1762750242000,0.01276849,106220.0,106210.0,0.80493167]
[1762750242502,0.19814694,106220.0,106210.0,0.80493167]
[1762750242732,0.00985849,106220.0,106210.0,0.80493167]
[1762750242931,0.00985849,106220.0,106210.0,0.9030334]
[1762750243130,0.19814694,106220.0,106210.0,0.9030334]
[1762750243311,0.19814694,106220.0,106210.0,0.8782634]
[1762750243488,0.21323694,106220.0,106210.0,0.67418722]
[1762750243686,0.19814694,106220.0,106210.0,0.9030334]
[1762750244049,0.00985849,106220.0,106210.0,0.9030334]
[1762750246150,0.19814694,106220.0,106210.0,0.71472722]
[1762750246448,0.19814694,106220.0,106210.0,0.03996998]